fUSD/lending_fUSD_20240215
["ID","MTS","AMOUNT","RATE_DAILY","PERIOD"]
[314169067,1708039849160,-158.306838,0.00038356,7]
[314169068,1708039849169,-151.0,0.00038356,7]
[314169069,1708039849178,-189.919965,0.00038356,7]
[314169070,1708039849187,-151.0,0.00038356,7]
[314169071,1708039849197,-151.0,0.00038356,7]
[314169072,1708039849208,-151.0,0.00038356,7]
[314169073,1708039849217,-151.0,0.00038356,7]
[314169074,1708039849225,-151.0,0.00038356,7]
[314169075,1708039849234,-160.144882,0.00038356,7]
[314169076,1708039849245,-151.0,0.00038356,7]
[314169077,1708039849255,-151.0,0.00038356,7]
[314169078,1708039849264,-151.0,0.00038356,7]
[314169079,1708039849273,-151.0,0.00038356,7]
[314169080,1708039849282,-151.0,0.00038356,7]
[314169081,1708039849291,-151.0,0.00038356,7]
[314169082,1708039849300,-151.0,0.00038356,7]
[314169083,1708039849309,-151.0,0.00038356,7]
[314169084,1708039849318,-151.0,0.00038356,2]
[314169085,1708039849327,-151.0,0.00038356,2]
[314169086,1708039849337,-151.0,0.00038356,2]
[314169087,1708039849345,-151.0,0.00038356,2]
[314169088,1708039849355,-151.0,0.00038356,2]
[314169089,1708039849364,-151.0,0.00038356,2]
[314169090,1708039849373,-276.640022,0.00038356,2]
[314169091,1708039849383,-151.0,0.00038356,7]
[314169092,1708039849392,-164.865869,0.00038356,7]
[314169093,1708039849403,-269.358227,0.00038356,7]
[314169094,1708039849414,-158.083973,0.00038356,7]
[314169095,1708039849426,-151.0,0.00038356,7]
[314169096,1708039849435,-151.0,0.00038356,7]
[314169097,1708039849444,-151.0,0.00038356,7]
[314169098,1708039849453,-151.0,0.00038356,7]
[314169099,1708039849464,-178.905771,0.00038356,7]
[314169100,1708039849476,-159.121245,0.00038356,7]
[314169101,1708039849486,-158.603269,0.00038356,7]
[314169102,1708039849496,-204.945274,0.00038356,7]
[314169103,1708039849507,-151.0,0.00038356,7]
[314169104,1708039849518,-151.0,0.00038356,7]
[314169105,1708039849528,-151.0,0.00038356,7]
[314169106,1708039849537,-205.993678,0.00038356,7]
[314169107,1708039849547,-151.0,0.00038356,7]
[314169108,1708039849559,-193.30357,0.00038356,7]
[314169109,1708039849569,-340.323789,0.00038356,7]
[314169110,1708039849580,-340.323789,0.00038356,7]
[314169111,1708039849591,-340.323789,0.00038356,7]
[314169112,1708039849601,-340.323789,0.00038356,7]
[314169113,1708039849610,-152.12682,0.00038356,7]
[314169114,1708039849621,-340.323789,0.00038356,7]
[314169115,1708039849631,-340.323789,0.00038356,7]
[314169116,1708039849640,-340.323789,0.00038356,7]
[314169117,1708039849650,-340.323789,0.00038356,7]
[314169118,1708039849661,-151.0,0.00038356,7]
[314169119,1708039849672,-151.0,0.00038356,7]
[314169120,1708039849683,-151.0,0.00038356,7]
[314169121,1708039849694,-151.0,0.00038356,7]
[314169122,1708039849703,-151.0,0.00038356,7]
[314169123,1708039849713,-183.114024,0.00038356,7]
[314169124,1708039849723,-157.789721,0.00038356,7]
[314169125,1708039849734,-151.0,0.00038356,7]
[314169126,1708039849743,-151.0,0.00038356,7]
[314169127,1708039849751,-151.0,0.00038356,7]
[314169128,1708039849760,-151.0,0.00038356,7]
[314169129,1708039849769,-151.0,0.00038356,7]
[314169130,1708039849778,-151.0,0.00038356,7]
[314169131,1708039849787,-151.0,0.00038356,7]
[314169132,1708039849796,-185.847422,0.00038356,7]
[314169133,1708039849805,-151.0,0.00038356,7]
[314169134,1708039849815,-151.0,0.00038356,7]
[314169135,1708039849824,-151.0,0.00038356,7]
[314169136,1708039849833,-151.0,0.00038356,7]
[314169137,1708039849843,-151.0,0.00038356,7]
[314169138,1708039849852,-151.0,0.00038356,7]
[314169139,1708039849862,-151.0,0.00038356,7]
[314169140,1708039849871,-151.0,0.00038356,7]
[314169141,1708039850000,-151.0,0.00038356,7]
[314169142,1708039850010,-151.0,0.00038356,7]
[314169143,1708039850020,-151.0,0.00038356,7]
[314169144,1708039850029,-151.0,0.00038356,7]
[314169145,1708039850038,-151.0,0.00038356,7]
[314169146,1708039850048,-2322.27,0.00038356,15]
[314169147,1708039850057,-151.0,0.00038356,7]
[314169148,1708039850066,-151.0,0.00038356,7]
[314169149,1708039850075,-151.0,0.00038356,7]
[314169150,1708039850084,-151.0,0.00038356,7]
[314169151,1708039850094,-151.0,0.00038356,7]
[314169152,1708039850103,-172.724711,0.00038356,7]
[314169153,1708039850112,-151.0,0.00038356,7]
[314169154,1708039850121,-151.0,0.00038356,7]
[314169155,1708039850131,-151.0,0.00038356,7]
[314169156,1708039850140,-153.334641,0.00038356,7]
[314169157,1708039850150,-152.748963,0.00038356,7]
[314169158,1708039850159,-151.0,0.00038356,7]
[314169159,1708039850168,-151.0,0.00038356,7]
[314169160,1708039850176,-151.0,0.00038356,7]
[314169161,1708039850186,-151.0,0.00038356,7]
[314169162,1708039850196,-151.0,0.00038356,7]
[314169163,1708039850207,-151.0,0.00038356,7]
[314169164,1708039850216,-153.218011,0.00038356,7]
[314169165,1708039850225,-159.17,0.00038378,2]
[314169166,1708039850234,-150.0,0.00038392,2]
[314169167,1708039850245,-452.61974966,0.000384,7]
[314169168,1708039850255,-511.03388508,0.00038414,10]
[314169169,1708039850264,-153.0,0.00038489,7]
[314169170,1708039850273,-234.021624,0.00038498,24]
[314169171,1708039850286,-1316.68004952,0.000385,3]
[314169172,1708039850296,-150.0,0.00038559,2]
[314169173,1708039850305,-150.0,0.00038583,2]
[314169174,1708039850314,-150.0,0.00038592,2]
[314169175,1708039850323,-3272.63,0.000386,7]
[314169176,1708039850331,-153.0,0.00038626,7]
[314169177,1708039850340,-500.0,0.0003863,7]
[314169178,1708039850349,-267.88568123,0.0003863,7]
[314169179,1708039850358,-156.99485917,0.0003863,7]
[314169180,1708039850367,-238.20103695,0.0003863,7]
[314169181,1708039850376,-237.03447198,0.0003863,7]
[314169182,1708039850385,-500.0,0.0003863,7]
[314169183,1708039850394,-608.41532139,0.0003863,7]
[314169184,1708039850403,-500.0,0.0003863,7]
[314169185,1708039850411,-500.0,0.0003863,7]
[314169186,1708039850420,-500.0,0.0003863,7]
[314169187,1708039850429,-500.0,0.0003863,7]
[314169188,1708039850439,-500.0,0.0003863,7]
[314169189,1708039850448,-522.47664279,0.0003863,7]
[314169190,1708039850458,-500.0,0.0003863,7]
[314169191,1708039850467,-500.0,0.0003863,7]
[314169192,1708039850476,-500.0,0.0003863,7]
[314169193,1708039850485,-565.36238069,0.0003863,2]
[314169194,1708039850494,-500.0,0.0003863,7]
[314169195,1708039850503,-500.0,0.0003863,2]
[314169196,1708039850512,-500.0,0.0003863,7]
[314169197,1708039850521,-500.0,0.0003863,7]
[314169198,1708039850531,-500.0,0.0003863,7]
[314169199,1708039850540,-500.0,0.0003863,7]
[314169200,1708039850549,-500.0,0.0003863,7]
[314169201,1708039850558,-500.0,0.0003863,7]
[314169202,1708039850569,-500.0,0.0003863,7]
[314169203,1708039850578,-500.0,0.0003863,7]
[314169204,1708039850587,-527.08760599,0.0003863,7]
[314169205,1708039850596,-500.0,0.0003863,7]
[314169206,1708039850605,-500.0,0.0003863,7]
[314169207,1708039850614,-500.0,0.0003863,7]
[314169208,1708039850622,-5000.0,0.0003863,14]
[314169209,1708039850632,-500.0,0.0003863,7]
[314169210,1708039850640,-500.0,0.0003863,7]
[314169211,1708039850650,-500.0,0.0003863,7]
[314169212,1708039850659,-500.0,0.0003863,7]
[314169213,1708039850668,-151.0,0.0003863,7]
[314169214,1708039850677,-151.0,0.0003863,7]
[314169215,1708039850686,-1000.0,0.0003863,14]
[314169216,1708039850695,-164.52,0.0003863,7]
[314169217,1708039850704,-500.0,0.0003863,7]
[314169218,1708039850713,-500.0,0.0003863,7]
[314169219,1708039850723,-151.0,0.0003863,2]
[314169220,1708039850732,-389.89892135,0.0003863,7]
[314169221,1708039850741,-500.0,0.0003863,7]
[314169222,1708039850751,-500.0,0.0003863,7]
[314169223,1708039850760,-500.0,0.0003863,7]
[314169224,1708039850770,-500.0,0.0003863,7]
[314169225,1708039850779,-500.0,0.0003863,7]
[314169226,1708039850789,-500.0,0.0003863,7]
[314169227,1708039850798,-641.93,0.0003863,7]
[314169228,1708039850808,-500.0,0.0003863,7]
[314169229,1708039850817,-500.0,0.0003863,7]
[314169230,1708039850827,-706.01,0.0003863,7]
[314169231,1708039850837,-160.12032673,0.0003863,7]
[314169232,1708039850846,-500.0,0.0003863,7]
[314169233,1708039850855,-516.65,0.0003863,7]
[314169234,1708039850865,-500.0,0.0003863,7]
[314169235,1708039850874,-500.0,0.0003863,7]
[314169236,1708039850883,-421.49458455,0.0003863,7]
[314169237,1708039850893,-500.0,0.0003863,7]
[314169238,1708039850902,-533.86,0.0003863,7]
[314169239,1708039850911,-700.0,0.0003863,7]
[314169240,1708039850920,-500.0,0.0003863,7]
[314169241,1708039850929,-500.0,0.0003863,7]
[314169242,1708039850938,-500.0,0.0003863,7]
[314169243,1708039850948,-500.0,0.0003863,7]
[314169244,1708039850958,-500.0,0.0003863,7]
[314169245,1708039850967,-500.0,0.0003863,7]
[314169246,1708039850977,-500.0,0.0003863,7]
[314169247,1708039850986,-1877.83,0.0003863,7]
[314169248,1708039850996,-340.323789,0.0003863,7]
[314169249,1708039851005,-500.0,0.0003863,7]
[314169250,1708039851015,-340.323789,0.0003863,7]
[314169251,1708039851025,-500.0,0.0003863,7]
[314169252,1708039851034,-500.0,0.0003863,7]
[314169253,1708039851043,-623.53,0.0003863,7]
[314169254,1708039851053,-151.0,0.0003863,7]
[314169255,1708039851062,-500.0,0.0003863,7]
[314169256,1708039851071,-500.0,0.0003863,7]
[314169257,1708039851081,-500.0,0.0003863,7]
[314169258,1708039851090,-500.0,0.0003863,7]
[314169259,1708039851100,-500.0,0.0003863,7]
[314169260,1708039851109,-500.0,0.0003863,7]
[314169261,1708039851119,-500.0,0.0003863,7]
[314169262,1708039851128,-500.0,0.0003863,7]
[314169263,1708039851138,-500.0,0.0003863,7]
[314169264,1708039851147,-500.0,0.0003863,7]
[314169265,1708039851156,-500.0,0.0003863,7]
[314169266,1708039851165,-552.23,0.0003863,7]
[314169267,1708039851175,-500.0,0.0003863,7]
[314169268,1708039851184,-965.78,0.0003863,7]
[314169269,1708039851194,-151.0,0.0003863,7]
[314169270,1708039851206,-500.0,0.0003863,7]
[314169271,1708039851216,-500.0,0.0003863,7]
[314169272,1708039851225,-151.0,0.0003863,7]
[314169273,1708039851234,-500.0,0.0003863,7]
[314169274,1708039851245,-500.0,0.0003863,7]
[314169275,1708039851256,-500.0,0.0003863,7]
[314169276,1708039851265,-500.0,0.0003863,7]
[314169277,1708039851275,-500.0,0.0003863,7]
[314169278,1708039851285,-500.0,0.0003863,7]
[314169279,1708039851295,-500.0,0.0003863,7]
[314169280,1708039851305,-500.0,0.0003863,7]
[314169281,1708039851314,-500.0,0.0003863,7]
[314169282,1708039851323,-564.23,0.0003863,7]
[314169283,1708039851333,-500.0,0.0003863,7]
[314169284,1708039851342,-596.43,0.0003863,7]
[314169285,1708039851351,-500.0,0.0003863,7]
[314169286,1708039851360,-500.0,0.0003863,7]
[314169287,1708039851370,-500.0,0.0003863,7]
[314169288,1708039851380,-500.0,0.0003863,7]
[314169289,1708039851389,-500.0,0.0003863,7]
[314169290,1708039851399,-500.0,0.0003863,7]
[314169291,1708039851408,-500.0,0.0003863,7]
[314169292,1708039851418,-500.0,0.0003863,7]
[314169293,1708039851427,-500.0,0.0003863,7]
[314169294,1708039851436,-500.0,0.0003863,7]
[314169295,1708039851445,-151.0,0.0003863,7]
[314169296,1708039851454,-500.0,0.0003863,7]
[314169297,1708039851463,-500.0,0.0003863,7]
[314169298,1708039851473,-500.0,0.0003863,7]
[314169299,1708039851481,-500.0,0.0003863,7]
[314169300,1708039851491,-500.0,0.0003863,7]
[314169301,1708039851500,-500.0,0.0003863,7]
[314169302,1708039851509,-500.0,0.0003863,7]
[314169303,1708039851518,-500.0,0.0003863,7]
[314169304,1708039851527,-500.0,0.0003863,7]
[314169305,1708039851536,-500.0,0.0003863,7]
[314169306,1708039851546,-229.89893227,0.0003863,7]
[314169307,1708039851555,-500.0,0.0003863,7]
[314169308,1708039851564,-604.95,0.0003863,7]
[314169309,1708039851573,-500.0,0.0003863,7]
[314169310,1708039851582,-620.99,0.0003863,7]
[314169311,1708039851592,-500.0,0.0003863,7]
[314169312,1708039851601,-500.0,0.0003863,7]
[314169313,1708039851609,-500.0,0.0003863,7]
[314169314,1708039851619,-500.0,0.0003863,7]
[314169315,1708039851628,-500.0,0.0003863,7]
[314169316,1708039851637,-752.59,0.0003863,7]
[314169317,1708039851646,-500.0,0.0003863,7]
[314169318,1708039851656,-670.38,0.0003863,7]
[314169319,1708039851664,-500.0,0.0003863,7]
[314169320,1708039851674,-500.0,0.0003863,7]
[314169321,1708039851683,-1453.37,0.0003863,7]
[314169322,1708039851692,-500.0,0.0003863,7]
[314169323,1708039851701,-500.0,0.0003863,7]
[314169324,1708039851711,-500.0,0.0003863,7]
[314169325,1708039851720,-500.0,0.0003863,7]
[314169326,1708039851729,-8292.83,0.0003863,7]
[314169327,1708039851739,-1177.03,0.0003863,7]
[314169328,1708039851748,-500.0,0.0003863,7]
[314169329,1708039851757,-598.96,0.0003863,7]
[314169330,1708039851767,-500.0,0.0003863,7]
[314169331,1708039851776,-500.0,0.0003863,7]
[314169332,1708039851785,-500.0,0.0003863,7]
[314169333,1708039851794,-500.0,0.0003863,7]
[314169334,1708039851803,-402.79667361,0.0003863,7]
[314169335,1708039851812,-500.0,0.0003863,7]
[314169336,1708039851822,-567.05,0.0003863,7]
[314169337,1708039851831,-500.0,0.0003863,7]
[314169338,1708039851840,-500.0,0.0003863,7]
[314169339,1708039851849,-500.0,0.0003863,7]
[314169340,1708039851859,-500.0,0.0003863,7]
[314169341,1708039851868,-630.88,0.0003863,7]
[314169342,1708039851878,-500.0,0.0003863,7]
[314169343,1708039851887,-684.76,0.0003863,7]
[314169344,1708039851896,-500.0,0.0003863,7]
[314169345,1708039851905,-500.0,0.0003863,7]
[314169346,1708039851915,-500.0,0.0003863,7]
[314169347,1708039851925,-500.0,0.0003863,7]
[314169348,1708039851934,-150.0,0.0003864,2]
[314169349,1708039851944,-159.17,0.00038671,2]
[314169350,1708039851954,-394.54,0.000387,7]
[314169351,1708039851963,-154.03,0.000387,3]
[314169352,1708039851973,-451.5,0.000387,3]
[314169353,1708039851982,-451.5,0.000387,3]
[314169354,1708039851991,-451.5,0.000387,3]
[314169355,1708039852000,-451.5,0.000387,3]
[314169356,1708039852010,-451.5,0.000387,3]
[314169357,1708039852019,-451.5,0.000387,3]
[314169358,1708039852029,-451.5,0.000387,3]
[314169359,1708039852038,-451.5,0.000387,3]
[314169360,1708039852049,-451.5,0.000387,3]
[314169361,1708039852060,-451.5,0.000387,3]
[314169362,1708039852070,-451.5,0.000387,3]
[314169363,1708039852080,-451.5,0.000387,3]
[314169364,1708039852089,-451.5,0.000387,3]
[314169365,1708039852098,-451.5,0.000387,3]
[314169366,1708039852108,-451.5,0.000387,3]
[314169367,1708039852117,-451.5,0.000387,3]
[314169368,1708039852126,-451.5,0.000387,3]
[314169369,1708039852135,-451.5,0.000387,3]
[314169370,1708039852144,-451.5,0.000387,3]
[314169371,1708039852153,-451.5,0.000387,3]
[314169372,1708039852163,-171.083297,0.000387,7]
[314169373,1708039852172,-1050.0,0.00038701,7]
[314169374,1708039852181,-628.0,0.00038701,7]
[314169375,1708039852191,-728.0,0.00038701,7]
[314169376,1708039852203,-200.0,0.00038701,7]
[314169377,1708039852213,-153.0,0.00038763,7]
[314169378,1708039852221,-1186.62475854,0.00038765,2]
[314169379,1708039852231,-159.26338955,0.00038767,12]
[314169380,1708039852241,-1364.38,0.0003877,7]
[314169381,1708039852250,-1364.38,0.0003877,7]
[314169382,1708039852259,-1364.38,0.0003877,7]
[314169383,1708039852269,-1364.38,0.0003877,7]
[314169384,1708039852279,-150.0,0.00038775,2]
[314169385,1708039852288,-1500.0,0.00038779,2]
[314169386,1708039852297,-150.0,0.00038781,2]
[314169387,1708039852307,-147045.996294,0.0003879,2]
[314169388,1708039852318,-234.021624,0.00038798,25]
[314169389,1708039852328,-150.0,0.00038805,2]
[314169390,1708039852340,-2000.0,0.00038829,2]
[314169391,1708039852350,-200.0,0.00038829,2]
[314169392,1708039852360,-200.0,0.00038829,2]
[314169393,1708039852369,-2877.79440369,0.00038873,2]
[314169394,1708039852378,-150.0,0.00038877,2]
[314169395,1708039852387,-153.0,0.000389,7]
[314169396,1708039852396,-150.0,0.000389,2]
[314169397,1708039852405,-500.0,0.00038904,7]
[314169398,1708039852414,-549.77,0.00038904,7]
[314169399,1708039852423,-500.0,0.00038904,7]
[314169400,1708039852432,-500.0,0.00038904,7]
[314169401,1708039852442,-500.0,0.00038904,7]
[314169402,1708039852451,-500.0,0.00038904,7]
[314169403,1708039852460,-199.85920608,0.00038904,7]
[314169404,1708039852470,-628.9877523,0.00038904,7]
[314169405,1708039852479,-5000.0,0.00038904,14]
[314169406,1708039852488,-644.38,0.00038904,7]
[314169407,1708039852498,-500.0,0.00038904,7]
[314169408,1708039852507,-500.0,0.00038904,7]
[314169409,1708039852516,-1000.0,0.00038904,14]
[314169410,1708039852525,-500.0,0.00038904,7]
[314169411,1708039852534,-500.0,0.00038904,7]
[314169412,1708039852543,-500.0,0.00038904,7]
[314169413,1708039852553,-500.0,0.00038904,7]
[314169414,1708039852563,-500.0,0.00038904,7]
[314169415,1708039852573,-500.0,0.00038904,7]
[314169416,1708039852583,-641.93,0.00038904,7]
[314169417,1708039852594,-500.0,0.00038904,7]
[314169418,1708039852604,-706.01,0.00038904,7]
[314169419,1708039852613,-500.0,0.00038904,7]
[314169420,1708039852622,-516.65,0.00038904,7]
[314169421,1708039852632,-500.0,0.00038904,7]
[314169422,1708039852642,-533.86,0.00038904,7]
[314169423,1708039852651,-700.0,0.00038904,7]
[314169424,1708039852661,-500.0,0.00038904,7]
[314169425,1708039852670,-500.0,0.00038904,7]
[314169426,1708039852679,-500.0,0.00038904,7]
[314169427,1708039852689,-500.0,0.00038904,7]
[314169428,1708039852699,-500.0,0.00038904,7]
[314169429,1708039852709,-500.0,0.00038904,7]
[314169430,1708039852720,-500.0,0.00038904,7]
[314169431,1708039852731,-1877.83,0.00038904,7]
[314169432,1708039852741,-500.0,0.00038904,7]
[314169433,1708039852751,-321.56731359,0.00038904,7]
[314169434,1708039852761,-500.0,0.00038904,7]
[314169435,1708039852771,-623.53,0.00038904,7]
[314169436,1708039852782,-500.0,0.00038904,7]
[314169437,1708039852791,-500.0,0.00038904,7]
[314169438,1708039852801,-500.0,0.00038904,7]
[314169439,1708039852810,-500.0,0.00038904,7]
[314169440,1708039852821,-500.0,0.00038904,7]
[314169441,1708039852932,-500.0,0.00038904,7]
[314169442,1708039852956,-552.23,0.00038904,7]
[314169443,1708039852966,-965.78,0.00038904,7]
[314169444,1708039852975,-500.0,0.00038904,7]
[314169445,1708039852985,-500.0,0.00038904,7]
[314169446,1708039852995,-500.0,0.00038904,7]
[314169447,1708039853005,-500.0,0.00038904,7]
[314169448,1708039853015,-500.0,0.00038904,7]
[314169449,1708039853025,-500.0,0.00038904,7]
[314169450,1708039853035,-500.0,0.00038904,7]
[314169451,1708039853045,-500.0,0.00038904,7]
[314169452,1708039853056,-500.0,0.00038904,7]
[314169453,1708039853068,-564.23,0.00038904,7]
[314169454,1708039853078,-500.0,0.00038904,7]
[314169455,1708039853087,-500.0,0.00038904,7]
[314169456,1708039853097,-596.43,0.00038904,7]
[314169457,1708039853107,-500.0,0.00038904,7]
[314169458,1708039853116,-500.0,0.00038904,7]
[314169459,1708039853126,-500.0,0.00038904,7]
[314169460,1708039853137,-500.0,0.00038904,7]
[314169461,1708039853147,-500.0,0.00038904,7]
[314169462,1708039853157,-336.25588189,0.00038904,7]
[314169463,1708039853167,-500.0,0.00038904,7]
[314169464,1708039853177,-500.0,0.00038904,7]
[314169465,1708039853187,-500.0,0.00038904,7]
[314169466,1708039853197,-606.03496652,0.00038904,7]
[314169467,1708039853209,-500.0,0.00038904,7]
[314169468,1708039853218,-645.42306364,0.00038904,7]
[314169469,1708039853227,-500.0,0.00038904,7]
[314169470,1708039853238,-500.0,0.00038904,7]
[314169471,1708039853247,-500.0,0.00038904,7]
[314169472,1708039853257,-604.95,0.00038904,7]
[314169473,1708039853266,-500.0,0.00038904,7]
[314169474,1708039853277,-500.0,0.00038904,7]
[314169475,1708039853287,-300.0,0.00038904,7]
[314169476,1708039853296,-500.0,0.00038904,7]
[314169477,1708039853305,-500.0,0.00038904,7]
[314169478,1708039853316,-752.59,0.00038904,7]
[314169479,1708039853327,-500.0,0.00038904,7]
[314169480,1708039853336,-670.38,0.00038904,7]
[314169481,1708039853345,-500.0,0.00038904,7]
[314169482,1708039853354,-500.0,0.00038904,7]
[314169483,1708039853363,-1453.37,0.00038904,7]
[314169484,1708039853374,-500.0,0.00038904,7]
[314169485,1708039853383,-8292.83,0.00038904,7]
[314169486,1708039853393,-1177.03,0.00038904,7]
[314169487,1708039853402,-244.77109087,0.00038904,7]
[314169488,1708039853411,-598.96,0.00038904,7]
[314169489,1708039853420,-555.41858535,0.00038904,7]
[314169490,1708039853429,-567.05,0.00038904,7]
[314169491,1708039853439,-500.0,0.00038904,7]
[314169492,1708039853448,-684.76,0.00038904,7]
[314169493,1708039853457,-500.0,0.00038904,7]
[314169494,1708039853467,-500.0,0.00038904,7]
[314169495,1708039853476,-500.0,0.00038904,7]
[314169496,1708039853485,-1000.0,0.00038905,2]
[314169497,1708039853495,-151.0,0.00038913,7]
[314169498,1708039853504,-2523.74854075,0.00038914,2]
[314169499,1708039853513,-150.0,0.00038917,2]
[314169500,1708039853523,-1165.16,0.00038931,2]
[314169501,1708039853532,-150.0,0.00038951,2]
[314169502,1708039853541,-2000.0,0.00039,3]
[314169503,1708039853551,-153.0,0.00039037,7]
[314169504,1708039853559,-1364.38,0.00039044,7]
[314169505,1708039853571,-1364.38,0.00039044,7]
[314169506,1708039853579,-200.0,0.00039045,15]
[314169507,1708039853588,-200.0,0.00039045,10]
[314169508,1708039853598,-1050.0,0.00039046,7]
[314169509,1708039853607,-628.0,0.00039046,7]
[314169510,1708039853616,-728.0,0.00039046,7]
[314169511,1708039853625,-200.0,0.00039046,7]
[314169512,1708039853634,-39090.9545623,0.00039065,2]
[314169513,1708039853645,-150.0,0.0003908,2]
[314169514,1708039853653,-150.0,0.00039098,2]
[314169515,1708039853663,-3272.63,0.000391,7]
[314169516,1708039853672,-152.97427392,0.000391,3]
[314169517,1708039853681,-1500.0,0.00039103,2]
[314169518,1708039853690,-2100.66159963,0.00039111,10]
[314169519,1708039853700,-548.86,0.00039119,2]
[314169520,1708039853709,-234.021624,0.00039148,26]
[314169521,1708039853718,-150.0,0.00039153,2]
[314169522,1708039853727,-429.0,0.00039163,2]
[314169523,1708039853736,-237.0,0.00039163,2]
[314169524,1708039853745,-1003.0,0.00039163,2]
[314169525,1708039853754,-857.0,0.00039163,2]
[314169526,1708039853762,-1138.0,0.00039163,2]
[314169527,1708039853772,-451.879,0.00039163,2]
[314169528,1708039853780,-150.0,0.00039163,2]
[314169529,1708039853790,-321.0,0.00039163,2]
[314169530,1708039853799,-454.0,0.00039163,2]
[314169531,1708039853808,-151.0,0.00039163,7]
[314169532,1708039853817,-163.2,0.00039163,7]
[314169533,1708039853826,-151.0,0.00039163,2]
[314169534,1708039853836,-151.0,0.00039163,7]
[314169535,1708039853846,-151.0,0.00039163,7]
[314169536,1708039853856,-151.0,0.00039163,7]
[314169537,1708039853865,-19841.0,0.00039163,2]
[314169538,1708039853874,-150.0,0.00039163,2]
[314169539,1708039853883,-8162.0,0.00039163,2]
[314169540,1708039853892,-4059.0,0.00039163,2]
[314169541,1708039853901,-2289.0,0.00039163,2]
[314169542,1708039853911,-186.858,0.00039163,2]
[314169543,1708039853920,-2834.0,0.00039163,2]
[314169544,1708039853929,-2926.0,0.00039163,2]
[314169545,1708039853938,-238.139,0.00039163,2]
[314169546,1708039853947,-1037.0,0.00039163,2]
[314169547,1708039853956,-953.0,0.00039163,2]
[314169548,1708039853966,-841.0,0.00039163,2]
[314169549,1708039853975,-1864.0,0.00039163,2]
[314169550,1708039853984,-153.0,0.00039174,7]
[314169551,1708039853994,-506.0,0.00039178,7]
[314169552,1708039854003,-500.0,0.00039178,7]
[314169553,1708039854012,-500.0,0.00039178,7]
[314169554,1708039854022,-500.0,0.00039178,7]
[314169555,1708039854032,-342.90386106,0.00039178,7]
[314169556,1708039854040,-1833.78553632,0.00039178,14]
[314169557,1708039854050,-194.26,0.00039178,7]
[314169558,1708039854058,-500.0,0.00039178,7]
[314169559,1708039854068,-500.0,0.00039178,7]
[314169560,1708039854077,-500.0,0.00039178,7]
[314169561,1708039854086,-641.93,0.00039178,7]
[314169562,1708039854095,-500.0,0.00039178,7]
[314169563,1708039854105,-706.01,0.00039178,7]
[314169564,1708039854113,-500.0,0.00039178,7]
[314169565,1708039854122,-516.65,0.00039178,7]
[314169566,1708039854131,-500.0,0.00039178,7]